fUSD/lending_fUSD_20240429
["ID","MTS","AMOUNT","RATE_DAILY","PERIOD"]
[324919140,1714417835864,-500.0,0.00011816,2]
[324919141,1714417835874,-703.19,0.00011816,2]
[324919142,1714417835883,-500.0,0.00011816,2]
[324919143,1714417835893,-703.74,0.00011816,2]
[324919144,1714417835902,-1140.34,0.00011816,2]
[324919145,1714417835912,-500.0,0.00011816,2]
[324919146,1714417835921,-1327.57,0.00011816,2]
[324919147,1714417835931,-500.0,0.00011816,2]
[324919148,1714417835940,-1064.56,0.00011816,2]
[324919149,1714417835950,-5034.68,0.00011816,2]
[324919150,1714417835959,-1219.93,0.00011816,2]
[324919151,1714417835969,-4183.22,0.00011816,2]
[324919152,1714417835979,-2855.91,0.00011816,2]
[324919153,1714417835988,-1846.08,0.00011816,2]
[324919154,1714417835998,-519.55,0.00011816,2]
[324919155,1714417836008,-1225.63,0.00011816,2]
[324919156,1714417836017,-1330.14,0.00011816,2]
[324919157,1714417836027,-1401.07,0.00011816,2]
[324919158,1714417836037,-646.57,0.00011816,2]
[324919159,1714417836047,-5548.44,0.00011816,2]
[324919160,1714417836056,-500.0,0.00011816,2]
[324919161,1714417836066,-500.0,0.00011816,2]
[324919162,1714417836076,-1242.72,0.00011816,2]
[324919163,1714417836086,-500.0,0.00011816,2]
[324919164,1714417836095,-3709.29,0.00011816,2]
[324919165,1714417836105,-500.0,0.00011816,2]
[324919166,1714417836115,-4072.34,0.00011816,2]
[324919167,1714417836124,-537.84,0.00011816,2]
[324919168,1714417836134,-2196.61,0.00011816,2]
[324919169,1714417836143,-2653.98,0.00011816,2]
[324919170,1714417836153,-578.87,0.00011816,2]
[324919171,1714417836163,-534.81,0.00011816,2]
[324919172,1714417836174,-2214.21,0.00011816,2]
[324919173,1714417836185,-500.0,0.00011816,2]
[324919174,1714417836194,-787.47,0.00011872,2]
[324919175,1714417836204,-150.0,0.00011872,2]
[324919176,1714417836214,-415.83,0.00011872,2]
[324919177,1714417836223,-150.0,0.00011872,2]
[324919178,1714417836233,-695.14,0.00011872,2]
[324919179,1714417836242,-300.0,0.00011872,2]
[324919180,1714417836252,-150.0,0.00011872,2]
[324919181,1714417836261,-150.0,0.00011872,2]
[324919182,1714417836270,-300.0,0.00011872,2]
[324919183,1714417836280,-150.0,0.00011872,2]
[324919184,1714417836290,-162.94,0.00011872,2]
[324919185,1714417836299,-325.86,0.00011872,2]
[324919186,1714417836309,-150.0,0.00011872,2]
[324919187,1714417836319,-162.94,0.00011872,2]
[324919188,1714417836328,-162.94,0.00011872,2]
[324919189,1714417836338,-323.99205487,0.00011898,2]
[324919190,1714417836352,-174.50586702,0.00011898,2]
[324919191,1714417836362,-155.0,0.00011898,2]
[324919192,1714417836371,-195.03831151,0.00011898,2]
[324919193,1714417836383,-257.93438693,0.00011898,2]
[324919194,1714417836392,-155.68789286,0.00011898,2]
[324919195,1714417836405,-1244.32649382,0.00011898,2]
[324919196,1714417836415,-3000.82967405,0.00011898,2]
[324919197,1714417836426,-172.02561652,0.00011899,2]
[324919198,1714417836435,-5850.48710487,0.00011899,2]
[324919199,1714417836444,-2000.0,0.00011899,2]
[324919200,1714417836454,-114264.9154633,0.000119,2]
[324919208,1714417838193,-500.0,0.00011541,2]
[324919209,1714417838203,-146.28503229,0.00011815,2]
[324919210,1714417838214,-353.71496771,0.00011815,2]
[324919211,1714417838224,-1460.85354229,0.000119,2]
[324919212,1714417838235,-2226.30968465,0.000119,2]
[324919213,1714417838247,-2437.77659755,0.000119,2]
[324919214,1714417838370,-34853.30758099,0.000119,2]
[324919215,1714417838384,-353.33450113,0.000119,2]
[324919216,1714417838439,-424.88308538,0.000119,2]
[324919217,1714417838451,-283.43058592,0.000119,2]
[324919218,1714417838616,-4454.1220184,0.000119,2]
[324919220,1714417838629,-8330.77246562,0.000119,2]
[324919449,1714417840625,-2194.73,0.00011541,2]
[324919518,1714417843635,-334.42442736,0.00011541,2]
[324919531,1714417846399,-2384.86557264,0.00011541,2]
[324919532,1714417846410,-500.0,0.00011541,2]
[324919533,1714417846420,-3869.98,0.00011541,2]
[324919534,1714417846429,-500.0,0.00011541,2]
[324919535,1714417846440,-1118.27,0.00011541,2]
[324919536,1714417846449,-500.0,0.00011541,2]
[324919537,1714417846458,-500.0,0.00011541,2]
[324919538,1714417846467,-500.0,0.00011542,2]
[324919539,1714417846476,-500.0,0.00011715,2]
[324919540,1714417846485,-500.0,0.00011715,2]
[324919541,1714417846494,-4914.02,0.00011815,2]
[324919542,1714417846503,-500.0,0.00011815,2]
[324919543,1714417846513,-907.21152214,0.00011815,2]
[324919544,1714417846525,-1035.46900232,0.00011815,2]
[324919545,1714417848417,-1594.00343583,0.00011815,2]
[324919546,1714417848529,-333.29603971,0.00011815,2]
[324919547,1714417848538,-500.0,0.00011815,2]
[324919548,1714417848548,-311.07843029,0.00011815,2]
[324919550,1714418058477,414.96,8.995e-05,2]
[324919551,1714418532920,394.21,8.824e-05,2]
[324919555,1714419016615,374.49,8.879e-05,2]
[324919564,1714419032305,-255.58586281,0.00010661,2]
[324919565,1714419032315,-44.40413719,0.00010662,2]
[324919566,1714419032326,-105.59586281,0.00010662,2]
[324919567,1714419032334,-404.2711671,0.00010664,2]
[324919568,1714419032344,-2764.57,0.00010668,2]
[324919569,1714419032352,-1595.43503041,0.00010697,2]
[324919570,1714419032363,-615.77052,0.00010697,2]
[324919571,1714419032424,-4243.84407077,0.00010697,2]
[324919572,1714419032435,-1670.35449995,0.00010697,2]
[324919573,1714419032447,-2144.45724868,0.00010697,2]
[324919574,1714419032458,-801.07990242,0.00010697,2]
[324919575,1714419032469,-479.84771151,0.00010697,2]
[324919576,1714419032480,-280.83854349,0.00010697,2]
[324919577,1714419032536,-1509.71825524,0.00010697,2]
[324919578,1714419032547,-6548.66421753,0.00010697,2]
[324919579,1714419032555,-165.26,0.00010726,2]
[324919580,1714419032563,-250.0,0.00010747,2]
[324919581,1714419032572,-182.05,0.00010819,2]
[324919582,1714419032581,-161.69,0.00010836,2]
[324919583,1714419032590,-589.88,0.0001089,2]
[324919584,1714419032599,-150.0,0.00010959,2]
[324919585,1714419032608,-390.29558275,0.00011,3]
[324919586,1714419032619,-521.97670531,0.00011,3]
[324919587,1714419032629,-725.86856105,0.00011,3]
[324919588,1714419032639,-811.85915089,0.00011,3]
[324919589,1714419032648,-374.49,0.00011143,2]
[324919590,1714419032657,-953.54545881,0.00011303,2]
[324919591,1714419032669,-3002.17711625,0.00011303,7]
[324919592,1714419032686,-2418.1409,0.00011303,7]
[324919597,1714419038528,-3758.90818087,0.00011303,7]
[324919598,1714419038538,-1100.0,0.000114,4]
[324919599,1714419038548,-1607.05263274,0.000115,4]
[324919600,1714419038559,-592.94736726,0.000115,4]
[324919601,1714419038569,-500.0,0.00011541,2]
[324919602,1714419038584,-416.16948338,0.00011541,2]
[324919603,1714419038604,-258.95051662,0.00011541,2]
[324919604,1714419038613,-500.0,0.00011541,2]
[324919605,1714419038623,-500.0,0.00011541,2]
[324919606,1714419038632,-500.0,0.00011541,2]
[324919607,1714419038641,-500.0,0.00011541,2]
[324919608,1714419038650,-500.0,0.00011541,2]
[324919609,1714419038660,-500.0,0.00011541,2]
[324919610,1714419038671,-500.0,0.00011541,2]
[324919611,1714419038680,-500.0,0.00011541,2]
[324919612,1714419038689,-542.16,0.00011541,2]
[324919613,1714419038699,-500.0,0.00011541,2]
[324919614,1714419038709,-500.0,0.00011541,2]
[324919615,1714419038718,-500.0,0.00011541,2]
[324919616,1714419038727,-461.17,0.00011541,2]
[324919617,1714419038737,-500.0,0.00011541,2]
[324919618,1714419038748,-500.0,0.00011541,2]
[324919619,1714419038758,-500.0,0.00011541,2]
[324919620,1714419038767,-500.0,0.00011541,2]
[324919621,1714419038776,-500.0,0.00011541,2]
[324919622,1714419038785,-500.0,0.00011541,2]
[324919623,1714419038794,-500.0,0.00011541,2]
[324919624,1714419038803,-500.0,0.00011541,2]
[324919625,1714419038812,-500.0,0.00011541,2]
[324919626,1714419038822,-500.0,0.00011541,2]
[324919627,1714419038831,-3300.0,0.000116,4]
[324919628,1714419038839,-4500.0,0.000117,4]
[324919629,1714419038849,-210.0,0.00011728,2]
[324919630,1714419038858,-1000.0,0.000118,2]
[324919631,1714419038867,-10586.36843856,0.000118,2]
[324919632,1714419038875,-5600.0,0.000118,4]
[324919633,1714419038884,-7500.0,0.000118,2]
[324919634,1714419038893,-500.0,0.00011805,2]
[324919635,1714419038902,-500.0,0.00011814,2]
[324919636,1714419038911,-500.0,0.00011814,2]
[324919637,1714419038920,-500.0,0.00011814,2]
[324919638,1714419038929,-500.0,0.00011814,2]
[324919639,1714419038938,-500.0,0.00011814,2]
[324919640,1714419038947,-500.0,0.00011814,2]
[324919641,1714419038958,-579.89,0.00011814,2]
[324919642,1714419038967,-500.0,0.00011814,2]
[324919643,1714419038976,-150.0,0.00011814,2]
[324919644,1714419038985,-500.0,0.00011814,2]
[324919645,1714419038995,-1331.91,0.00011814,2]
[324919647,1714419039004,-500.0,0.00011814,2]
[324919649,1714419039014,-819.94,0.00011814,2]
[324919651,1714419039023,-500.0,0.00011814,2]
[324919653,1714419039032,-500.0,0.00011814,2]
[324919655,1714419039041,-500.0,0.00011814,2]
[324919657,1714419039050,-500.0,0.00011814,2]
[324919659,1714419039059,-215.05478345,0.00011814,2]
[324919660,1714419039068,-647.86,0.00011814,2]
[324919661,1714419039077,-500.0,0.00011814,2]
[324919662,1714419039086,-3331.8,0.00011814,2]
[324919663,1714419039095,-1058.71,0.00011814,2]
[324919664,1714419039103,-2754.99,0.00011814,2]
[324919665,1714419039113,-500.0,0.00011814,2]
[324919666,1714419039122,-500.0,0.00011814,2]
[324919667,1714419039131,-500.0,0.00011814,2]
[324919668,1714419039140,-500.0,0.00011814,2]
[324919669,1714419039149,-1692.24,0.00011814,2]
[324919670,1714419039159,-1575.16,0.00011814,2]
[324919671,1714419039168,-500.0,0.00011814,2]
[324919672,1714419039177,-2617.91,0.00011814,2]
[324919673,1714419039186,-674.64,0.00011814,2]
[324919674,1714419039196,-1123.5,0.00011814,2]
[324919676,1714419039206,-3547.48,0.00011814,2]
[324919678,1714419039215,-1284.31,0.00011814,2]
[324919680,1714419039224,-826.37,0.00011814,2]
[324919682,1714419039234,-3429.95,0.00011814,2]
[324919684,1714419039243,-500.0,0.00011814,2]
[324919686,1714419039252,-500.0,0.00011814,2]
[324919688,1714419039262,-500.0,0.00011814,2]
[324919690,1714419039270,-592.69,0.00011814,2]
[324919692,1714419039280,-833.05,0.00011814,2]
[324919694,1714419039289,-500.0,0.00011814,2]
[324919696,1714419039298,-1139.16,0.00011814,2]
[324919698,1714419039307,-500.0,0.00011814,2]
[324919700,1714419039317,-528.53066885,0.00011814,2]
[324919702,1714419039326,-500.0,0.00011814,2]
[324919704,1714419039335,-3400.19,0.00011814,2]
[324919706,1714419039344,-1054.85,0.00011814,2]
[324919708,1714419039353,-855.1,0.00011814,2]
[324919731,1714419039554,-839.7,0.00011814,2]
[324919733,1714419039564,-1675.87,0.00011814,2]
[324919735,1714419039573,-3732.98,0.00011814,2]
[324919737,1714419039582,-825.64,0.00011814,2]
[324919739,1714419039592,-2013.56,0.00011814,2]
[324919741,1714419039601,-1333.55,0.00011814,2]
[324919743,1714419039610,-2432.81,0.00011814,2]
[324919745,1714419039619,-852.34,0.00011814,2]
[324919747,1714419039629,-1400.82,0.00011814,2]
[324919749,1714419039638,-500.0,0.00011814,2]
[324919751,1714419039647,-744.94,0.00011814,2]
[324919753,1714419039656,-1204.26,0.00011814,2]
[324919755,1714419039667,-500.0,0.00011814,2]
[324919757,1714419039678,-745.9,0.00011814,2]
[324919759,1714419039687,-500.0,0.00011814,2]
[324919761,1714419039696,-955.99,0.00011814,2]
[324919763,1714419039705,-2321.91,0.00011814,2]
[324919765,1714419039717,-500.0,0.00011814,2]
[324919767,1714419039726,-530.63,0.00011814,2]
[324919769,1714419039735,-560.03,0.00011814,2]
[324919771,1714419039744,-500.0,0.00011814,2]
[324919773,1714419039754,-1305.72,0.00011814,2]
[324919775,1714419039763,-932.22,0.00011814,2]
[324919777,1714419039772,-500.0,0.00011814,2]
[324919779,1714419039781,-363.14,0.00011814,2]
[324919781,1714419039791,-500.0,0.00011814,2]
[324919783,1714419039800,-1537.58,0.00011814,2]
[324919785,1714419039809,-2295.69,0.00011814,2]
[324919787,1714419039818,-1994.8,0.00011814,2]
[324919789,1714419039827,-500.0,0.00011814,2]
[324919791,1714419039837,-500.0,0.00011814,2]
[324919793,1714419039846,-1542.4,0.00011814,2]
[324919795,1714419039855,-500.0,0.00011814,2]
[324919797,1714419039864,-804.3,0.00011814,2]
[324919799,1714419039872,-500.0,0.00011814,2]
[324919801,1714419039881,-500.0,0.00011814,2]
[324919803,1714419039891,-500.0,0.00011814,2]
[324919805,1714419039900,-2098.35,0.00011814,2]
[324919807,1714419039909,-500.0,0.00011814,2]
[324919809,1714419039918,-1875.96,0.00011814,2]
[324919811,1714419039927,-1778.69,0.00011814,2]
[324919813,1714419039935,-2029.69,0.00011814,2]
[324919815,1714419039944,-4651.1,0.00011814,2]
[324919817,1714419039954,-812.03,0.00011814,2]
[324919819,1714419039962,-500.0,0.00011814,2]
[324919821,1714419039972,-873.37,0.00011814,2]
[324919823,1714419039980,-1434.19,0.00011814,2]
[324919825,1714419039989,-1868.43,0.00011814,2]
[324919827,1714419039998,-500.0,0.00011814,2]
[324919829,1714419040007,-500.0,0.00011814,2]
[324919831,1714419040016,-500.0,0.00011814,2]
[324919833,1714419040025,-1175.44,0.00011814,2]
[324919834,1714419040034,-2598.17,0.00011814,2]
[324919837,1714419040044,-500.0,0.00011814,2]
[324919838,1714419040053,-500.0,0.00011814,2]
[324919841,1714419040062,-1891.91,0.00011814,2]
[324919842,1714419040071,-500.0,0.00011814,2]
[324919845,1714419040081,-1076.89,0.00011814,2]
[324919847,1714419040091,-808.59,0.00011814,2]
[324919849,1714419040100,-500.0,0.00011814,2]
[324919850,1714419040109,-500.0,0.00011814,2]
[324919852,1714419040118,-1790.64,0.00011814,2]
[324919855,1714419040128,-662.43,0.00011814,2]
[324919856,1714419040138,-1735.81,0.00011814,2]
[324919858,1714419040147,-500.0,0.00011814,2]
[324919860,1714419040156,-500.0,0.00011814,2]
[324919862,1714419040165,-500.0,0.00011814,2]
[324919864,1714419040174,-644.59,0.00011814,2]
[324919866,1714419040183,-3333.35,0.00011814,2]
[324919868,1714419040192,-4504.52,0.00011814,2]
[324919870,1714419040202,-1579.38,0.00011814,2]
[324919872,1714419040211,-500.0,0.00011814,2]
[324919874,1714419040221,-500.0,0.00011814,2]
[324919876,1714419040230,-645.09,0.00011814,2]
[324919878,1714419040240,-500.0,0.00011814,2]
[324919880,1714419040249,-518.53,0.00011814,2]
[324919882,1714419040258,-500.0,0.00011814,2]
[324919884,1714419040267,-500.0,0.00011814,2]
[324919886,1714419040276,-1045.31,0.00011814,2]
[324919888,1714419040285,-500.0,0.00011814,2]
[324919890,1714419040294,-4965.13,0.00011814,2]
[324919892,1714419040303,-500.0,0.00011815,2]
[324919894,1714419040313,-675.12,0.00011815,2]
[324919896,1714419040322,-500.0,0.00011815,2]
[324919898,1714419040331,-500.0,0.00011815,2]
[324919900,1714419040341,-500.0,0.00011815,2]
[324919902,1714419040350,-500.0,0.00011815,2]
[324919904,1714419040359,-500.0,0.00011815,2]
[324919906,1714419040369,-624.54,0.00011815,2]
[324919908,1714419040378,-500.0,0.00011815,2]
[324919910,1714419040388,-500.0,0.00011815,2]
[324919912,1714419040396,-500.0,0.00011815,2]
[324919914,1714419040405,-500.0,0.00011815,2]
[324919916,1714419040414,-500.0,0.00011815,2]
[324919918,1714419040424,-500.0,0.00011815,2]
[324919920,1714419040433,-500.0,0.00011815,2]
[324919922,1714419040442,-497.62,0.00011815,2]
[324919924,1714419040454,-500.0,0.00011815,2]
[324919926,1714419040463,-500.0,0.00011815,2]
[324919929,1714419040472,-500.0,0.00011815,2]
[324919931,1714419040482,-500.0,0.00011815,2]
[324919933,1714419040491,-500.0,0.00011815,2]
[324919934,1714419040500,-500.0,0.00011815,2]
[324919937,1714419040510,-258.60558846,0.00011815,2]
[324919939,1714419040519,-712.15,0.0001189,2]
[324919941,1714419040528,-320.25027245,0.00011898,2]
[324919943,1714419040538,-377.00428399,0.00011898,2]
[324919945,1714419040547,-323.99205487,0.00011898,2]
[324919947,1714419040556,-155.68785924,0.00011898,2]
[324919948,1714419040565,-316.90811539,0.00011898,2]
[324919950,1714419040574,-2778.47871484,0.00011899,2]
[324919952,1714419040583,-910.42406737,0.00011899,2]
[324919957,1714419040612,-306.51593263,0.00011899,2]
[324919959,1714419040622,-975.85,0.00011899,2]
[324919961,1714419040631,-4615.12,0.00011899,2]
[324919962,1714419040640,-925.27292184,0.00011899,2]
[324919996,1714419040949,-2909.34707816,0.00011899,2]
[324919998,1714419040971,-500.0,0.00011899,2]
[324920000,1714419040980,-1219.3,0.00011899,2]
[324920002,1714419040989,-5086.07,0.00011899,2]
[324920004,1714419040998,-500.0,0.00011899,2]
[324920006,1714419041007,-500.0,0.00011899,2]
[324920008,1714419041016,-500.0,0.00011899,2]
[324920010,1714419041025,-724.0,0.000119,2]
[324920012,1714419041033,-7538.23773286,0.000119,2]
[324920015,1714419041045,-1333.3111236,0.000119,2]
[324920017,1714419041056,-406.7734298,0.000119,2]
[324920021,1714419041086,-332.55634362,0.000119,2]
[324920023,1714419041097,-2632.87153649,0.000119,2]
[324920026,1714419041108,-840.71707407,0.000119,2]
[324920030,1714419041136,-2723.68358874,0.000119,2]
[324920032,1714419041148,-3083.82444317,0.000119,2]
[324920112,1714419043691,-2640.2,0.00011814,2]
[324920113,1714419043700,-1166.23,0.00011814,2]
[324920114,1714419043713,-11144.76826176,0.000119,2]
[324920121,1714419046532,-306.21779093,0.00011814,2]
[324920122,1714419046544,-193.78220907,0.00011814,2]
[324920123,1714419046553,-500.0,0.00011814,2]
[324920124,1714419046562,-1014.6,0.00011814,2]
[324920125,1714419046572,-36177.75936061,0.000119,2]
[324920126,1714419046626,-296.26673161,0.000119,2]
[324920127,1714419046724,-966.81774873,0.000119,2]
[324920128,1714419046828,-483.87719183,0.000119,2]
[324920129,1714419046840,-1372.13278,0.000119,2]
[324920130,1714419046852,-905.72771757,0.000119,2]
[324920132,1714419067592,361.23601401,8.879e-05,2]
[324920136,1714419559623,475.95,9.03e-05,2]
[324920137,1714419829415,365.94145926,9.03e-05,2]
[324920138,1714419833499,599.86824826,9.03e-05,2]
[324920139,1714419834059,345080.74238668,9.03e-05,2]
[324920140,1714419840064,17991.75386871,9.03e-05,2]
[324920141,1714419851036,20179.52552551,9.03e-05,2]
[324920142,1714419852000,249563.19718252,9.03e-05,2]
[324920143,1714419852027,40544.01462757,9.03e-05,2]
[324920144,1714419852874,257.50470225,9.03e-05,2]
[324920145,1714419855198,173.13094208,9.03e-05,2]
[324920146,1714419859237,449.82627796,9.03e-05,2]
[324920147,1714419866762,20179.52552551,9.03e-05,2]
[324920148,1714419868874,378.24315705,9.03e-05,2]
[324920149,1714419872513,706.94065433,9.029e-05,2]
[324920150,1714419874057,9186.20257012,0.0001,7]
[324920151,1714419875134,173.31322886,9.03e-05,2]
[324920152,1714419880756,19773.98269086,9.03e-05,2]
[324920158,1714420035013,452.15,8.774e-05,2]
[324920196,1714420231718,-250.0,0.00010571,2]
[324920197,1714420231729,-310.1296671,0.0001067,2]
[324920198,1714420231739,-953.85703351,0.00010671,2]
[324920199,1714420231748,-4415.16760854,0.00010672,2]
[324920200,1714420231757,-12167.68,0.00010686,2]
[324920201,1714420231767,-4604.44,0.00010692,2]
[324920202,1714420231776,-608.95188497,0.00010797,2]
[324920203,1714420231788,-391.04811503,0.00010797,2]
[324920204,1714420231797,-221.14,0.00010896,2]
[324920205,1714420231806,-165.51,0.00010948,2]
[324920206,1714420231815,-171.04,0.00010948,2]
[324920207,1714420231825,-150.0,0.00010959,2]
[324920208,1714420231834,-499.99,0.00010997,2]
[324920209,1714420231843,-627.64847135,0.00011,3]
[324920210,1714420231854,-611.71059997,0.00011,3]
[324920211,1714420231866,-574.32971375,0.00011,3]
[324920212,1714420231878,-636.31121493,0.00011,3]
[324920213,1714420231887,-452.15,0.00011038,2]
[324920214,1714420232117,-8352.57452691,0.00011126,7]
[324920215,1714420232144,-677.45377569,0.00011126,7]
[324920216,1714420232156,-142.22152152,0.00011126,7]
[324920217,1714420232166,-142.27551266,0.00011204,2]
[324920218,1714420232177,-324.56718734,0.00011204,2]
[324920219,1714420232186,-1294.55623512,0.00011304,2]
[324920220,1714420232195,-165.49925274,0.00011304,2]
[324920221,1714420232207,-363.20473629,0.00011304,2]
[324920222,1714420232216,-200.0,0.000114,4]
[324920223,1714420232226,-500.0,0.000115,4]
[324920224,1714420232235,-800.0,0.000116,4]
[324920225,1714420232244,-127.65915237,0.00011614,2]
[324920226,1714420232256,-3237.37524763,0.00011614,2]
[324920227,1714420232266,-366.3759,0.00011614,2]
[324920228,1714420232275,-2500.0,0.00011614,2]
[324920229,1714420232284,-1000.0,0.000117,2]
[324920230,1714420232293,-1000.0,0.000117,2]
[324920231,1714420232302,-1000.0,0.000117,2]
[324920232,1714420232311,-1001.0,0.000117,2]
[324920233,1714420232320,-1100.0,0.000117,4]
[324920234,1714420232330,-155.0,0.00011712,2]
[324920235,1714420232340,-703.67865683,0.00011712,2]
[324920236,1714420232350,-233.06329822,0.00011713,2]
[324920237,1714420232359,-2185.73081459,0.00011713,2]
[324920238,1714420232368,-40034.4948,0.00011714,2]
[324920239,1714420232378,-100000.0,0.00011714,2]
[324920240,1714420232387,-1000.0,0.00011714,2]
[324920241,1714420232397,-25983.22989592,0.00011714,2]
[324920242,1714420232408,-2274.26238943,0.00011714,2]
[324920243,1714420232420,-759.74631465,0.00011714,2]
[324920244,1714420232429,-418.71320291,0.00011714,2]
[324920245,1714420232440,-879.81439709,0.00011714,2]
[324920246,1714420232451,-253.34690228,0.00011718,2]
[324920247,1714420232463,-578.5596183,0.00011718,2]
[324920248,1714420232474,-4184.73411083,0.00011718,2]
[324920249,1714420232484,-379.74937687,0.00011797,2]
[324920250,1714420232493,-47.10171684,0.00011798,2]
[324920251,1714420232505,-452.89828316,0.00011798,2]
[324920252,1714420232514,-713.9,0.00011798,2]
[324920253,1714420232524,-916.15,0.00011798,2]
[324920254,1714420232533,-816.83,0.00011798,2]
[324920255,1714420232543,-536.7,0.00011798,2]
[324920256,1714420232552,-500.0,0.00011798,2]
[324920257,1714420232561,-500.0,0.00011798,2]
[324920258,1714420232570,-2225.16,0.00011798,2]
[324920259,1714420232579,-1911.68,0.00011798,2]
[324920260,1714420232589,-577.36413002,0.00011798,2]
[324920264,1714420237762,-500.0,0.00011797,2]
[324920265,1714420237771,-500.0,0.00011797,2]
[324920266,1714420237781,-673.94586998,0.00011798,2]
[324920267,1714420237790,-500.0,0.00011798,2]
[324920268,1714420237800,-500.0,0.00011798,2]
[324920269,1714420237809,-1797.79,0.00011798,2]
[324920270,1714420237820,-500.0,0.00011798,2]
[324920271,1714420237831,-500.0,0.00011798,2]
[324920272,1714420237842,-1374.43,0.00011798,2]
[324920273,1714420237851,-1704.58,0.00011798,2]
[324920274,1714420237861,-500.0,0.00011798,2]
[324920275,1714420237871,-409.90293399,0.00011798,2]
[324920276,1714420237881,-500.0,0.00011798,2]
[324920277,1714420237891,-1790.58,0.00011798,2]
[324920278,1714420237901,-1032.02,0.00011798,2]
[324920279,1714420237910,-3194.46,0.00011798,2]
[324920280,1714420237919,-500.0,0.00011798,2]
[324920281,1714420237928,-1109.74,0.00011798,2]
[324920282,1714420237938,-2530.19,0.00011798,2]
[324920283,1714420237947,-500.0,0.00011798,2]
[324920284,1714420237957,-555.73,0.00011799,2]
[324920285,1714420237967,-421.16,0.00011799,2]
[324920286,1714420237976,-785.78,0.00011799,2]
[324920287,1714420237985,-500.0,0.00011799,2]
[324920288,1714420237994,-333.94311606,0.00011799,2]
[324920289,1714420238003,-620.87,0.00011799,2]
[324920290,1714420238013,-500.0,0.00011799,2]
[324920291,1714420238022,-500.0,0.00011799,2]
[324920293,1714420238032,-500.0,0.00011799,2]
[324920295,1714420238046,-1509.53,0.00011799,2]
[324920297,1714420238055,-646.53,0.00011799,2]
[324920299,1714420238065,-791.94,0.00011799,2]
[324920301,1714420238074,-3287.04,0.00011799,2]
[324920303,1714420238083,-500.0,0.00011799,2]
[324920305,1714420238092,-798.34,0.00011799,2]
[324920307,1714420238101,-500.0,0.00011799,2]
[324920309,1714420238111,-1010.89,0.00011799,2]
[324920311,1714420238119,-804.72,0.00011799,2]
[324920313,1714420238128,-1277.99,0.00011799,2]
[324920314,1714420238137,-1342.45,0.00011799,2]
[324920316,1714420238147,-1154.09,0.00011799,2]
[324920318,1714420238156,-714.82,0.00011799,2]
[324920320,1714420238165,-500.0,0.00011799,2]
[324920322,1714420238174,-707.25,0.00011799,2]
[324920324,1714420238183,-500.0,0.00011799,2]
[324920326,1714420238192,-500.0,0.00011799,2]
[324920328,1714420238202,-1473.52,0.00011799,2]
[324920330,1714420238212,-1231.77,0.00011799,2]
[324920332,1714420238221,-500.0,0.00011799,2]
[324920334,1714420238231,-2010.92,0.00011799,2]
[324920336,1714420238240,-778.19,0.00011799,2]
[324920338,1714420238249,-253.79757061,0.00011799,2]
[324920340,1714420238258,-2111.31,0.00011799,2]
[324920342,1714420238268,-500.0,0.00011799,2]
[324920344,1714420238277,-489.13,0.00011799,2]
[324920346,1714420238286,-2489.91,0.00011799,2]
[324920348,1714420238295,-500.0,0.00011799,2]
[324920350,1714420238305,-1813.08,0.00011799,2]